fUSD/lending_fUSD_20240330
["ID","MTS","AMOUNT","RATE_DAILY","PERIOD"]
[321022503,1711786239456,-151.033016,0.00044936,30]
[321022504,1711786239466,-151.033016,0.00044956,31]
[321022505,1711786239479,-151.033016,0.00044976,32]
[321022506,1711786239490,-5163.78099331,0.0004498,2]
[321022507,1711786239500,-151.033016,0.00044996,33]
[321022508,1711786239510,-10454.56230624,0.00045,5]
[321022509,1711786239519,-42286.92798907,0.00045,2]
[321022510,1711786239533,-88258.42894178,0.00045,2]
[321022511,1711786239543,-511198.54251549,0.00045,30]
[321022512,1711786239553,-333.83250387,0.00045,30]
[321022513,1711786239564,-387.64376467,0.00045,30]
[321022514,1711786239573,-45672.71687961,0.00045,30]
[321022515,1711786239583,-968.47978678,0.00045009,30]
[321022516,1711786239593,-150.0,0.0004502,120]
[321022517,1711786239603,-900.0,0.00045035,30]
[321022518,1711786239613,-600.0,0.00045035,30]
[321022519,1711786239624,-1248.2736,0.0004514,30]
[321022520,1711786239635,-150.0,0.00045287,120]
[321022521,1711786239646,-1500.0,0.00045309,30]
[321022522,1711786239656,-777.96569646,0.00045329,2]
[321022523,1711786239665,-152.84328859,0.00045456,27]
[321022524,1711786239675,-36344.46822957,0.00045471,2]
[321022525,1711786239685,-150.0,0.000455,8]
[321022526,1711786239695,-150.0,0.000455,8]
[321022527,1711786239706,-152.0,0.00045502,4]
[321022528,1711786239715,-4144.17555855,0.00045516,20]
[321022529,1711786239725,-900.0,0.00045583,30]
[321022530,1711786239734,-600.0,0.00045583,30]
[321022531,1711786239744,-1500.0,0.00045857,30]
[321022532,1711786239754,-5687.0,0.00045975,2]
[321022533,1711786239765,-1191.751,0.00045975,2]
[321022534,1711786239775,-43018.0,0.00045975,2]
[321022535,1711786239784,-1211.0,0.00045975,2]
[321022536,1711786239796,-2477.239,0.00045975,2]
[321022537,1711786239805,-4777.0,0.00045975,2]
[321022538,1711786239815,-1048.0,0.00045975,2]
[321022539,1711786239825,-208.61063674,0.00045993,12]
[321022540,1711786239836,-2168.00272388,0.00046,2]
[321022541,1711786239846,-10000.0,0.00046,2]
[321022542,1711786239856,-35956.01999271,0.00046,30]
[321022543,1711786239866,-150.0,0.00046,8]
[321022544,1711786239875,-150.0,0.00046,8]
[321022545,1711786239886,-763.15684495,0.00046,60]
[321022546,1711786239897,-152.84328859,0.00046011,29]
[321022548,1711786239907,-900.0,0.00046131,30]
[321022550,1711786239917,-600.0,0.00046131,30]
[321022552,1711786239927,-4144.17555855,0.00046133,21]
[321022582,1711786240121,-150.0,0.0004636,120]
[321022584,1711786240132,-1500.0,0.00046405,30]
[321022586,1711786240143,-891.34,0.00046432,2]
[321022588,1711786240154,-36344.46822957,0.00046439,2]
[321022590,1711786240165,-150.0,0.000465,8]
[321022592,1711786240174,-150.0,0.000465,8]
[321022594,1711786240183,-152.84328859,0.00046567,31]
[321022596,1711786240192,-500.0,0.00046575,4]
[321022598,1711786240201,-500.0,0.00046575,4]
[321022600,1711786240211,-371.19142466,0.00046575,4]
[321022602,1711786240220,-500.0,0.00046575,4]
[321022604,1711786240230,-500.0,0.00046575,4]
[321022606,1711786240239,-500.08276346,0.00046575,4]
[321022609,1711786240250,-500.0,0.00046575,4]
[321022611,1711786240260,-500.0,0.00046575,4]
[321022613,1711786240269,-500.0,0.00046575,4]
[321022615,1711786240278,-500.0,0.00046575,4]
[321022617,1711786240288,-500.0,0.00046575,4]
[321022619,1711786240297,-500.0,0.00046575,4]
[321022621,1711786240306,-500.0,0.00046575,4]
[321022622,1711786240315,-500.0,0.00046575,4]
[321022625,1711786240325,-500.0,0.00046575,4]
[321022626,1711786240334,-500.0,0.00046575,4]
[321022628,1711786240343,-500.0,0.00046575,4]
[321022630,1711786240352,-500.0,0.00046575,4]
[321022631,1711786240361,-500.0,0.00046575,4]
[321022632,1711786240371,-500.0,0.00046575,4]
[321022633,1711786240380,-1048.82,0.00046575,4]
[321022634,1711786240390,-500.0,0.00046575,4]
[321022635,1711786240403,-958.11,0.00046575,4]
[321022636,1711786240413,-500.0,0.00046575,4]
[321022637,1711786240423,-500.0,0.00046575,4]
[321022638,1711786240432,-500.0,0.00046575,4]
[321022639,1711786240444,-500.0,0.00046575,4]
[321022640,1711786240454,-500.0,0.00046575,4]
[321022641,1711786240464,-500.0,0.00046575,4]
[321022642,1711786240474,-500.0,0.00046575,4]
[321022643,1711786240484,-500.0,0.00046575,4]
[321022644,1711786240494,-500.0,0.00046575,4]
[321022645,1711786240504,-500.0,0.00046575,4]
[321022646,1711786240515,-885.72,0.00046575,4]
[321022647,1711786240524,-500.0,0.00046575,4]
[321022648,1711786240533,-500.0,0.00046575,4]
[321022649,1711786240543,-500.0,0.00046575,4]
[321022650,1711786240553,-831.54,0.00046575,4]
[321022651,1711786240562,-500.0,0.00046575,4]
[321022652,1711786240571,-500.0,0.00046575,4]
[321022653,1711786240580,-500.0,0.00046575,4]
[321022654,1711786240590,-500.0,0.00046575,4]
[321022655,1711786240600,-500.0,0.00046575,4]
[321022656,1711786240609,-500.0,0.00046575,4]
[321022657,1711786240619,-500.0,0.00046575,4]
[321022658,1711786240628,-505.22161606,0.00046575,4]
[321022659,1711786240637,-500.0,0.00046575,4]
[321022660,1711786240647,-500.0,0.00046575,4]
[321022661,1711786240656,-500.0,0.00046575,4]
[321022662,1711786240666,-500.0,0.00046575,4]
[321022663,1711786240675,-500.0,0.00046575,4]
[321022664,1711786240686,-500.0,0.00046575,4]
[321022665,1711786240695,-500.0,0.00046575,4]
[321022666,1711786240706,-500.0,0.00046575,4]
[321022667,1711786240719,-500.0,0.00046575,4]
[321022668,1711786240730,-500.0,0.00046575,4]
[321022669,1711786240740,-500.0,0.00046575,4]
[321022670,1711786240750,-500.0,0.00046575,4]
[321022671,1711786240761,-500.0,0.00046575,4]
[321022672,1711786240771,-500.0,0.00046575,4]
[321022673,1711786240782,-514.8857775,0.00046575,4]
[321022674,1711786240792,-503.63633984,0.00046575,4]
[321022675,1711786240802,-507.08438903,0.00046575,4]
[321022676,1711786240812,-500.0,0.00046575,2]
[321022677,1711786240822,-500.0,0.00046575,4]
[321022678,1711786240832,-500.0,0.00046575,4]
[321022679,1711786240843,-500.0,0.00046575,4]
[321022680,1711786240853,-500.0,0.00046575,4]
[321022681,1711786240862,-505.82430483,0.00046575,4]
[321022682,1711786240871,-500.0,0.00046575,4]
[321022683,1711786240883,-500.0,0.00046575,4]
[321022684,1711786240893,-500.0,0.00046575,4]
[321022685,1711786240903,-961.79,0.00046575,4]
[321022686,1711786240915,-500.0,0.00046575,4]
[321022687,1711786240925,-500.0,0.00046575,4]
[321022688,1711786240936,-500.0,0.00046575,4]
[321022689,1711786240946,-500.0,0.00046575,4]
[321022690,1711786240957,-500.0,0.00046575,4]
[321022691,1711786240968,-500.0,0.00046575,4]
[321022692,1711786240978,-500.0,0.00046575,4]
[321022693,1711786240989,-279.3,0.00046575,4]
[321022694,1711786241010,-500.0,0.00046575,4]
[321022695,1711786241035,-500.0,0.00046575,4]
[321022696,1711786241053,-500.0,0.00046575,4]
[321022697,1711786241074,-500.0,0.00046575,4]
[321022698,1711786241092,-500.0,0.00046575,4]
[321022699,1711786241113,-500.0,0.00046575,4]
[321022700,1711786241131,-777.22,0.00046575,4]
[321022701,1711786241145,-500.0,0.00046575,4]
[321022702,1711786241166,-500.0,0.00046575,4]
[321022703,1711786241187,-500.0,0.00046575,4]
[321022704,1711786241205,-500.0,0.00046575,4]
[321022705,1711786241229,-500.0,0.00046575,4]
[321022706,1711786241247,-500.0,0.00046575,4]
[321022707,1711786241262,-500.0,0.00046575,4]
[321022708,1711786241285,-500.0,0.00046575,4]
[321022709,1711786241300,-500.0,0.00046575,4]
[321022710,1711786241317,-500.0,0.00046575,4]
[321022711,1711786241348,-500.0,0.00046575,4]
[321022712,1711786241367,-624.67,0.00046575,4]
[321022713,1711786241386,-500.0,0.00046575,4]
[321022714,1711786241406,-500.0,0.00046575,4]
[321022715,1711786241424,-500.0,0.00046575,4]
[321022716,1711786241443,-500.0,0.00046575,4]
[321022717,1711786241459,-500.0,0.00046575,4]
[321022718,1711786241476,-500.0,0.00046575,4]
[321022719,1711786241491,-500.0,0.00046575,4]
[321022720,1711786241508,-506.22861079,0.00046575,4]
[321022721,1711786241524,-500.0,0.00046575,4]
[321022722,1711786241541,-500.0,0.00046575,4]
[321022723,1711786241556,-500.0,0.00046575,4]
[321022724,1711786241573,-508.59082362,0.00046575,4]
[321022725,1711786241589,-500.0,0.00046575,4]
[321022726,1711786241604,-500.0,0.00046575,4]
[321022727,1711786241620,-500.0,0.00046575,4]
[321022728,1711786241636,-500.0,0.00046575,4]
[321022729,1711786241652,-500.0,0.00046575,4]
[321022730,1711786241667,-500.0,0.00046575,4]
[321022731,1711786241682,-500.0,0.00046575,4]
[321022732,1711786241702,-500.0,0.00046575,4]
[321022733,1711786241720,-500.0,0.00046575,4]
[321022734,1711786241736,-667.04,0.00046575,4]
[321022735,1711786241753,-749.7,0.00046575,4]
[321022736,1711786241769,-500.0,0.00046575,4]
[321022737,1711786241786,-500.0,0.00046575,4]
[321022738,1711786241803,-504.55930559,0.00046575,4]
[321022739,1711786241819,-500.0,0.00046575,4]
[321022740,1711786241836,-500.0,0.00046575,4]
[321022741,1711786241852,-500.0,0.00046575,4]
[321022742,1711786241867,-500.0,0.00046575,4]
[321022743,1711786241883,-500.0,0.00046575,4]
[321022744,1711786241899,-500.0,0.00046575,4]
[321022745,1711786241914,-500.0,0.00046575,4]
[321022746,1711786241930,-500.0,0.00046575,4]
[321022747,1711786241945,-507.85780866,0.00046575,4]
[321022748,1711786241961,-924.4,0.00046575,4]
[321022749,1711786241978,-1198.55,0.00046575,4]
[321022750,1711786241993,-500.0,0.00046575,4]
[321022751,1711786242009,-500.0,0.00046575,4]
[321022752,1711786242024,-500.0,0.00046575,4]
[321022753,1711786242040,-500.0,0.00046575,4]
[321022754,1711786242055,-500.0,0.00046575,4]
[321022755,1711786242070,-500.0,0.00046575,4]
[321022756,1711786242087,-500.0,0.00046575,4]
[321022757,1711786242101,-631.17804983,0.00046575,4]
[321022758,1711786242116,-500.0,0.00046575,4]
[321022759,1711786242131,-500.0,0.00046575,4]
[321022760,1711786242145,-500.0,0.00046575,4]
[321022761,1711786242161,-500.0,0.00046575,4]
[321022762,1711786242177,-500.0,0.00046575,4]
[321022763,1711786242192,-500.0,0.00046575,4]
[321022764,1711786242207,-500.0,0.00046575,4]
[321022765,1711786242222,-500.0,0.00046575,4]
[321022766,1711786242237,-500.0,0.00046575,4]
[321022767,1711786242252,-514.41685559,0.00046575,4]
[321022768,1711786242267,-500.0,0.00046575,4]
[321022769,1711786242283,-500.0,0.00046575,4]
[321022770,1711786242300,-500.0,0.00046575,4]
[321022771,1711786242309,-567.0,0.00046575,4]
[321022772,1711786242318,-500.0,0.00046575,4]
[321022773,1711786242328,-500.0,0.00046575,4]
[321022774,1711786242337,-2681.58,0.00046575,4]
[321022775,1711786242346,-500.0,0.00046575,4]
[321022776,1711786242356,-500.0,0.00046575,4]
[321022777,1711786242365,-500.0,0.00046575,4]
[321022778,1711786242374,-511.51475136,0.00046575,4]
[321022779,1711786242384,-500.0,0.00046575,4]
[321022780,1711786242656,-500.0,0.00046575,4]
[321022781,1711786242680,-500.0,0.00046575,4]
[321022782,1711786242700,-500.0,0.00046575,4]
[321022783,1711786242709,-657.06,0.00046575,4]
[321022784,1711786242719,-353.51304962,0.00046575,4]
[321022785,1711786242729,-555.42620304,0.00046575,4]
[321022786,1711786242738,-500.0,0.00046575,4]
[321022787,1711786242747,-586.27,0.00046575,4]
[321022788,1711786242757,-500.0,0.00046575,4]
[321022789,1711786242766,-777.35,0.00046575,4]
[321022790,1711786242776,-500.0,0.00046575,4]
[321022791,1711786242785,-500.0,0.00046575,4]
[321022792,1711786242794,-500.0,0.00046575,4]
[321022793,1711786242804,-1373.93,0.00046575,4]
[321022794,1711786242813,-624.33,0.00046575,4]
[321022795,1711786242823,-500.0,0.00046575,4]
[321022796,1711786242832,-500.0,0.00046575,4]
[321022797,1711786242841,-500.0,0.00046575,4]
[321022798,1711786242851,-859.93,0.00046575,4]
[321022799,1711786242860,-500.0,0.00046575,4]
[321022800,1711786242869,-500.0,0.00046575,4]
[321022801,1711786242879,-500.0,0.00046575,4]
[321022802,1711786242888,-500.0,0.00046575,4]
[321022803,1711786242897,-500.0,0.00046575,4]
[321022804,1711786242907,-2253.1,0.00046575,4]
[321022805,1711786242915,-500.0,0.00046575,4]
[321022806,1711786242925,-500.0,0.00046575,4]
[321022807,1711786242934,-500.0,0.00046575,4]
[321022809,1711786242942,-500.0,0.00046575,4]
[321022811,1711786242951,-500.0,0.00046575,4]
[321022812,1711786242960,-607.81,0.00046575,4]
[321022813,1711786242969,-1124.55,0.00046575,4]
[321022814,1711786242978,-500.0,0.00046575,4]
[321022815,1711786242987,-500.0,0.00046575,4]
[321022817,1711786242996,-500.0,0.00046575,4]
[321022819,1711786243006,-500.0,0.00046575,4]
[321022820,1711786243015,-500.0,0.00046575,4]
[321022822,1711786243026,-500.0,0.00046575,4]
[321022823,1711786243035,-16970.22,0.00046575,4]
[321022824,1711786243044,-500.0,0.00046575,4]
[321022826,1711786243054,-488.53806495,0.00046575,4]
[321022828,1711786243063,-6226.77,0.00046575,4]
[321022829,1711786243072,-500.0,0.00046575,4]
[321022831,1711786243081,-500.0,0.00046575,4]
[321022833,1711786243091,-500.0,0.00046575,4]
[321022835,1711786243101,-500.0,0.00046575,4]
[321022837,1711786243110,-1321.99,0.00046575,4]
[321022839,1711786243120,-500.0,0.00046575,4]
[321022842,1711786243134,-500.0,0.00046575,4]
[321022845,1711786243150,-500.0,0.00046575,4]
[321022847,1711786243160,-502.28336195,0.00046575,4]
[321022850,1711786243169,-500.0,0.00046575,4]
[321022852,1711786243180,-500.0,0.00046575,4]
[321022854,1711786243190,-500.0,0.00046575,4]
[321022856,1711786243199,-500.0,0.00046575,4]
[321022858,1711786243209,-2395.04,0.00046575,4]
[321022860,1711786243219,-1514.89,0.00046575,4]
[321022862,1711786243229,-500.0,0.00046575,4]
[321022864,1711786243239,-2368.61,0.00046575,4]
[321022866,1711786243248,-500.0,0.00046575,4]
[321022868,1711786243258,-500.0,0.00046575,4]
[321022869,1711786243267,-4466.4,0.00046575,4]
[321022870,1711786243277,-500.0,0.00046575,4]
[321022871,1711786243286,-595.3,0.00046575,4]
[321022872,1711786243295,-500.0,0.00046575,4]
[321022873,1711786243305,-500.0,0.00046575,4]
[321022874,1711786243315,-208.10975544,0.00046575,4]
[321022875,1711786243324,-1253.11,0.00046575,4]
[321022876,1711786243333,-500.0,0.00046575,4]
[321022877,1711786243343,-511.69591983,0.00046575,4]
[321022878,1711786243353,-500.0,0.00046575,4]
[321022879,1711786243362,-500.0,0.00046575,4]
[321022880,1711786243371,-500.0,0.00046575,4]
[321022881,1711786243381,-500.0,0.00046575,4]
[321022882,1711786243390,-500.0,0.00046575,4]
[321022883,1711786243404,-500.0,0.00046575,4]
[321022884,1711786243413,-500.0,0.00046575,4]
[321022885,1711786243423,-500.0,0.00046575,4]
[321022886,1711786243433,-500.0,0.00046575,4]
[321022887,1711786243445,-4324.08,0.00046575,4]
[321022888,1711786243455,-757.98,0.00046575,4]
[321022889,1711786243465,-500.0,0.00046575,4]
[321022890,1711786243475,-500.0,0.00046575,4]
[321022891,1711786243487,-500.0,0.00046575,4]
[321022892,1711786243497,-506.96864626,0.00046575,4]
[321022893,1711786243506,-500.0,0.00046575,4]
[321022894,1711786243516,-3523.59,0.00046575,4]
[321022895,1711786243525,-500.0,0.00046575,4]
[321022896,1711786243534,-1136.81,0.00046575,4]
[321022897,1711786243544,-500.0,0.00046575,4]
[321022898,1711786243554,-539.16521475,0.00046575,4]
[321022899,1711786243565,-520.31175572,0.00046575,4]
[321022900,1711786243575,-920.72,0.00046575,4]
[321022901,1711786243584,-500.0,0.00046575,4]
[321022902,1711786243594,-500.0,0.00046575,4]
[321022903,1711786243603,-500.0,0.00046575,4]
[321022904,1711786243612,-500.0,0.00046575,4]
[321022905,1711786243622,-500.0,0.00046575,4]
[321022906,1711786243631,-500.0,0.00046575,4]
[321022907,1711786243641,-500.0,0.00046575,4]
[321022908,1711786243650,-228.51709988,0.00046575,4]
[321022909,1711786243659,-500.0,0.00046575,4]
[321022910,1711786243669,-776.53,0.00046575,4]
[321022911,1711786243678,-500.0,0.00046575,4]
[321022912,1711786243688,-500.0,0.00046575,4]
[321022913,1711786243698,-1865.19,0.00046575,4]
[321022914,1711786243707,-500.0,0.00046575,4]
[321022915,1711786243717,-512.30561644,0.00046575,4]
[321022916,1711786243726,-500.0,0.00046575,4]
[321022917,1711786243735,-5471.55,0.00046575,4]
[321022918,1711786243745,-500.0,0.00046575,4]
[321022919,1711786243755,-500.0,0.00046575,4]
[321022921,1711786243764,-500.0,0.00046575,4]
[321022922,1711786243774,-500.0,0.00046575,4]
[321022924,1711786243784,-1601.81,0.00046575,4]
[321022926,1711786243794,-500.0,0.00046575,4]
[321022927,1711786243804,-500.0,0.00046575,4]
[321022928,1711786243816,-503.92786326,0.00046575,4]
[321022929,1711786243827,-3543.76,0.00046575,4]
[321022930,1711786243837,-500.0,0.00046575,4]
[321022931,1711786243847,-500.0,0.00046575,4]
[321022932,1711786243856,-3689.41,0.00046575,4]
[321022933,1711786243866,-500.0,0.00046575,2]
[321022934,1711786243875,-500.0,0.00046575,2]
[321022935,1711786243886,-500.0,0.00046575,2]
[321022937,1711786243898,-511.82623111,0.00046575,4]
[321022938,1711786243908,-500.0,0.00046575,2]
[321022939,1711786243917,-500.0,0.00046575,2]
[321022940,1711786243927,-500.0,0.00046575,4]
[321022941,1711786243938,-500.0,0.00046575,2]
[321022943,1711786243948,-1097.45,0.00046575,4]
[321022945,1711786243958,-500.0,0.00046575,4]
[321022947,1711786243968,-1324.76,0.00046575,4]
[321022949,1711786243979,-515.54657126,0.00046575,4]
[321022950,1711786243989,-500.0,0.00046575,4]
[321022951,1711786243999,-500.0,0.00046575,4]
[321022952,1711786244010,-500.0,0.00046575,4]
[321022953,1711786244020,-500.0,0.00046575,4]
[321022954,1711786244031,-500.0,0.00046575,4]
[321022955,1711786244041,-521.49654277,0.00046575,4]
[321022956,1711786244051,-500.0,0.00046575,4]
[321022957,1711786244061,-803.42,0.00046575,4]
[321022958,1711786244070,-500.0,0.00046575,4]
[321022959,1711786244080,-514.02812443,0.00046575,4]
[321022960,1711786244090,-500.0,0.00046575,4]
[321022961,1711786244100,-3810.33,0.00046575,4]
[321022962,1711786244110,-500.0,0.00046575,4]
[321022963,1711786244119,-500.0,0.00046575,4]
[321022964,1711786244130,-510.79296156,0.00046575,4]
[321022965,1711786244140,-500.0,0.00046575,4]
[321022966,1711786244150,-500.0,0.00046575,4]
[321022967,1711786244159,-500.0,0.00046575,4]
[321022968,1711786244170,-500.0,0.00046575,4]
[321022969,1711786244180,-5905.03,0.00046575,4]
[321022970,1711786244190,-983.55,0.00046575,4]
[321022971,1711786244201,-500.0,0.00046575,4]
[321022972,1711786244211,-500.0,0.00046575,4]
[321022973,1711786244221,-500.0,0.00046575,4]
[321022974,1711786244230,-1000.0,0.00046575,4]
[321022975,1711786244240,-500.0,0.00046575,4]
[321022976,1711786244250,-822.16,0.00046575,4]
[321022977,1711786244261,-500.0,0.00046575,4]
[321022978,1711786244272,-512.53148018,0.00046575,4]
[321022979,1711786244282,-509.50416029,0.00046575,4]
[321022980,1711786244293,-500.0,0.00046575,4]
[321022981,1711786244303,-500.0,0.00046575,4]
[321022982,1711786244313,-894.11,0.00046575,4]
[321022983,1711786244323,-11409.6,0.00046575,4]
[321022984,1711786244334,-500.0,0.00046575,4]
[321022985,1711786244343,-504.31867033,0.00046575,4]
[321022986,1711786244353,-500.0,0.00046575,4]
[321022987,1711786244365,-500.0,0.00046575,4]
[321022988,1711786244376,-500.0,0.00046575,4]
[321022989,1711786244386,-1196.71,0.00046575,4]
[321022990,1711786244398,-1651.94,0.00046575,4]
[321022991,1711786244409,-500.0,0.00046575,4]
[321022992,1711786244420,-1189.94,0.00046575,4]
[321022993,1711786244431,-500.0,0.00046575,4]
[321022994,1711786244442,-500.16305897,0.00046575,4]
[321022995,1711786244455,-723.72,0.00046575,4]
[321022996,1711786244467,-512.34389778,0.00046575,4]
[321022997,1711786244479,-500.0,0.00046575,4]
[321022998,1711786244489,-500.0,0.00046575,4]
[321022999,1711786244499,-500.0,0.00046575,4]
[321023000,1711786244508,-978.51,0.00046575,4]
[321023001,1711786244517,-500.0,0.00046575,4]
[321023002,1711786244527,-2923.64,0.00046575,4]
[321023003,1711786244536,-500.0,0.00046575,4]
[321023004,1711786244546,-500.0,0.00046575,4]
[321023005,1711786244555,-683.38,0.00046575,4]
[321023006,1711786244565,-1045.16,0.00046575,4]
[321023007,1711786244574,-504.10471553,0.00046575,4]
[321023008,1711786244583,-500.0,0.00046575,4]
[321023009,1711786244592,-500.0,0.00046575,4]
[321023010,1711786244602,-2098.76,0.00046575,4]
[321023011,1711786244611,-500.0,0.00046575,4]
[321023012,1711786244620,-500.0,0.00046575,4]
[321023013,1711786244630,-669.84,0.00046575,4]
[321023014,1711786244639,-500.0,0.00046575,4]
[321023015,1711786244649,-500.0,0.00046575,4]
[321023016,1711786244659,-500.0,0.00046575,4]
[321023017,1711786244668,-819.8,0.00046575,4]
[321023018,1711786244677,-1848.6,0.00046575,4]
[321023019,1711786244687,-511.01244089,0.00046575,4]
[321023020,1711786244696,-500.0,0.00046575,4]
[321023021,1711786244706,-4717.86,0.00046575,4]
[321023022,1711786244715,-500.0,0.00046575,4]
[321023023,1711786244725,-500.0,0.00046575,4]
[321023024,1711786244734,-500.0,0.00046575,4]
[321023025,1711786244744,-500.0,0.00046575,4]
[321023026,1711786244754,-500.0,0.00046575,4]
[321023027,1711786244763,-500.0,0.00046575,4]
[321023028,1711786244773,-518.63757925,0.00046575,4]
[321023029,1711786244782,-500.0,0.00046575,4]
[321023030,1711786244792,-500.0,0.00046575,4]
[321023031,1711786244802,-500.0,0.00046575,4]
[321023032,1711786244811,-500.0,0.00046575,4]
[321023033,1711786244821,-500.0,0.00046575,4]
[321023034,1711786244830,-500.0,0.00046575,4]
[321023035,1711786244840,-7553.16,0.00046575,4]
[321023036,1711786244850,-500.0,0.00046575,4]
[321023037,1711786244859,-500.0,0.00046575,4]
[321023038,1711786244869,-500.0,0.00046575,4]
[321023039,1711786244878,-500.0,0.00046575,4]
[321023040,1711786244888,-500.0,0.00046575,4]
[321023041,1711786244897,-500.0,0.00046575,4]
[321023042,1711786244906,-500.0,0.00046575,4]
[321023043,1711786244916,-500.0,0.00046575,4]
[321023044,1711786244925,-500.0,0.00046575,4]
[321023045,1711786244934,-677.47,0.00046575,4]
[321023046,1711786244944,-1300.28,0.00046575,4]
[321023047,1711786244953,-500.0,0.00046575,4]
[321023048,1711786244963,-2553.33,0.00046575,4]
[321023049,1711786244972,-1422.95,0.00046575,4]
[321023050,1711786244981,-500.0,0.00046575,4]
[321023051,1711786244991,-1835.7,0.00046575,4]
[321023052,1711786245000,-500.0,0.00046575,4]
[321023053,1711786245010,-554.92548378,0.00046575,120]
[321023054,1711786245020,-2072.16,0.00046575,4]
[321023055,1711786245029,-788.4,0.00046575,4]
[321023056,1711786245039,-543.62,0.00046575,4]
[321023057,1711786245049,-513.19018556,0.00046575,4]
[321023058,1711786245058,-500.0,0.00046575,4]
[321023059,1711786245067,-500.0,0.00046575,4]
[321023060,1711786245077,-500.0,0.00046575,4]
[321023061,1711786245086,-500.0,0.00046575,4]
[321023062,1711786245095,-500.0,0.00046575,4]
[321023063,1711786245104,-500.0,0.00046575,4]
[321023064,1711786245113,-500.0,0.00046575,4]
[321023065,1711786245123,-3274.73,0.00046575,4]
[321023066,1711786245133,-500.0,0.00046575,4]
[321023067,1711786245143,-509.41247019,0.00046575,4]
[321023068,1711786245153,-500.0,0.00046575,4]
[321023069,1711786245163,-500.0,0.00046575,4]
[321023070,1711786245172,-500.0,0.00046575,4]
[321023071,1711786245181,-500.0,0.00046575,4]
[321023072,1711786245191,-1079.29,0.00046575,4]
[321023073,1711786245201,-500.0,0.00046575,4]
[321023074,1711786245211,-500.0,0.00046575,4]
[321023075,1711786245221,-500.0,0.00046575,4]
[321023076,1711786245230,-500.0,0.00046575,4]
[321023077,1711786245239,-3538.16,0.00046575,4]
[321023078,1711786245249,-4966.83,0.00046575,4]
[321023079,1711786245259,-555.42,0.00046575,4]
[321023080,1711786245268,-500.0,0.00046575,4]
[321023081,1711786245279,-9225.3,0.00046575,4]
[321023082,1711786245289,-500.0,0.00046575,4]
[321023083,1711786245299,-3425.37,0.00046575,4]
[321023084,1711786245308,-503.76,0.00046575,4]
[321023085,1711786245317,-1627.23,0.00046575,4]
[321023086,1711786245327,-1104.94,0.00046575,4]
[321023087,1711786245337,-500.0,0.00046575,4]
[321023088,1711786245346,-503.91605757,0.00046575,4]
[321023089,1711786245356,-500.0,0.00046575,4]
[321023090,1711786245366,-500.0,0.00046575,4]
[321023091,1711786245375,-500.0,0.00046575,4]
[321023092,1711786245385,-503.33209177,0.00046575,4]
[321023093,1711786245397,-1506.17,0.00046575,4]
[321023094,1711786245411,-1506.17,0.00046575,4]